bitfinex-derivatives/quotes_BTCF0:USTF0_20250416
["timestamp","ask_amount","ask_price","bid_price","bid_amount"]
[1744793811306,0.1792418,83693.0,83687.0,0.2961024]
[1744793811608,0.0597463,83694.0,83687.0,0.2961024]
[1744793811904,0.1194939,83693.0,83687.0,0.2961024]
[1744793812106,0.0597455,83695.0,83687.0,0.2961024]
[1744793812699,0.1194896,83696.0,83687.0,0.2961024]
[1744793812898,0.1194914,83695.0,83687.0,0.2961024]
[1744793813098,0.11949,83696.0,83687.0,0.2961024]
[1744793813302,0.0469,83698.0,83687.0,0.2961024]
[1744793813499,0.1194927,83694.0,83687.0,0.2961024]
[1744793813905,0.1792362,83696.0,83687.0,0.2961024]
[1744793814099,0.0597454,83696.0,83687.0,0.2761024]
[1744793814301,0.4084,83697.0,83687.0,0.2761024]
[1744793814811,0.1195002,83689.0,83687.0,0.2761024]
[1744793815107,0.0597484,83691.0,83687.0,0.2761024]
[1744793815411,0.05017926,83688.0,83687.0,0.2761024]
[1744793816299,0.00017926,83688.0,83687.0,0.2761024]
[1744793820308,0.00017926,83688.0,83687.0,0.2861024]
[1744793820709,0.0597423,83700.0,83687.0,0.2861024]
[1744793820710,0.0597328,83713.0,83704.0,0.1194781]
[1744793821018,0.07182059,83725.0,83724.0,0.1194496]
[1744793821311,0.11852059,83725.0,83724.0,0.1194496]
[1744793821724,0.0597297,83718.0,83716.0,0.1194587]
[1744793821920,0.5866971,83717.0,83716.0,0.11963796]
[1744793822220,0.6363971,83717.0,83716.0,0.00025926]
[1744793822420,0.6363971,83717.0,83716.0,0.11972026]
[1744793822716,0.6363971,83717.0,83716.0,0.11964026]
[1744793822916,0.6363971,83717.0,83716.0,0.00017926]
[1744793823119,0.6825971,83717.0,83716.0,0.00017926]
[1744793823418,0.6855971,83717.0,83716.0,0.11972026]
[1744793824015,0.3247971,83717.0,83716.0,0.11972026]
[1744793824619,0.2153596,83717.0,83716.0,0.11972026]
[1744793824811,0.1686596,83717.0,83716.0,0.21922026]
[1744793825017,0.1746596,83717.0,83716.0,0.21922026]
[1744793825210,0.2226596,83717.0,83716.0,0.21922026]
[1744793825612,0.2196596,83717.0,83716.0,0.21922026]
[1744793825811,0.2266596,83717.0,83716.0,0.21922026]
[1744793826015,0.013,83717.0,83716.0,0.33922026]
[1744793826517,0.1074,83717.0,83716.0,0.33922026]
[1744793827321,0.1064,83717.0,83716.0,0.33922026]
[1744793827523,0.2188596,83717.0,83716.0,0.34022026]
[1744793828019,0.2188596,83717.0,83716.0,0.33922026]
[1744793828226,0.2188596,83717.0,83716.0,0.34022026]
[1744793828726,0.2168596,83717.0,83716.0,0.33922026]
[1744793828923,0.0504,83717.0,83716.0,0.33922026]
[1744793829820,0.001,83717.0,83716.0,0.34922026]
[1744793830025,0.001,83717.0,83716.0,0.38922026]
[1744793830818,0.0597268,83722.0,83721.0,0.1194539]
[1744793831021,0.1587268,83722.0,83721.0,0.1394539]
[1744793832117,0.1587268,83722.0,83721.0,0.1194539]
[1744793832420,0.1607268,83722.0,83721.0,0.1205339]
[1744793832921,0.1617268,83722.0,83721.0,0.00108]
[1744793833119,0.1617268,83722.0,83721.0,0.1204539]
[1744793833316,0.1617268,83722.0,83721.0,0.00108]
[1744793833718,0.1194596,83717.0,83716.0,0.00017926]
[1744793834021,0.4802596,83717.0,83716.0,0.00017926]
[1744793834226,0.5757596,83717.0,83716.0,0.00017926]
[1744793835221,0.5807596,83717.0,83716.0,0.00017926]
[1744793835724,0.5807596,83717.0,83716.0,0.11964026]
[1744793835919,0.5837596,83717.0,83716.0,0.11964026]
[1744793837418,0.5837596,83717.0,83716.0,0.00017926]
[1744793837727,0.5837596,83717.0,83716.0,0.11964026]
[1744793838022,0.5787596,83717.0,83716.0,0.11964026]
[1744793838231,0.5847596,83717.0,83716.0,0.11964026]
[1744793838618,0.5757596,83717.0,83716.0,0.11964026]
[1744793838825,0.5847596,83717.0,83716.0,0.11964026]
[1744793839329,0.5787596,83717.0,83716.0,0.11964026]
[1744793839527,0.5847596,83717.0,83716.0,0.00017926]
[1744793839735,0.5847596,83717.0,83716.0,0.11964026]
[1744793841030,0.5837596,83717.0,83716.0,0.11964026]
[1744793841534,0.5837596,83717.0,83716.0,0.00017926]
[1744793842932,0.5837596,83717.0,83716.0,0.00025926]
[1744793843632,0.2229596,83717.0,83716.0,0.11972026]
[1744793843929,0.5837596,83717.0,83716.0,0.11972026]
[1744793844632,0.1035,83717.0,83716.0,0.17022026]
[1744793845021,0.2229596,83717.0,83716.0,0.21822026]
[1744793845420,0.1753596,83717.0,83716.0,0.21822026]
[1744793848334,0.2222596,83717.0,83716.0,0.21822026]
[1744793848628,0.2222596,83717.0,83716.0,0.17022026]
[1744793848936,0.0559,83717.0,83716.0,0.17022026]
[1744793849129,0.0559,83717.0,83716.0,0.21902026]
[1744793849926,0.008,83717.0,83716.0,0.21902026]
[1744793850329,0.4882596,83717.0,83716.0,0.00025926]
[1744793850523,0.6361596,83717.0,83716.0,0.00025926]
[1744793850724,0.6361596,83717.0,83716.0,0.11972026]
[1744793850927,0.6361596,83717.0,83716.0,0.00025926]
[1744793851229,0.6361596,83717.0,83716.0,0.00017926]
[1744793851430,0.6361596,83717.0,83716.0,0.00025926]
[1744793851623,0.6361596,83717.0,83716.0,0.00017926]
[1744793851820,0.6361596,83717.0,83716.0,0.00025926]
[1744793853430,0.6361596,83717.0,83716.0,0.11965926]
[1744793864341,0.6361596,83717.0,83716.0,0.17085926]
[1744793865437,0.4191,83717.0,83716.0,0.29032026]
[1744793865635,0.1791736,83725.0,83724.0,0.1791707]
[1744793865839,0.4802399,83731.0,83727.0,0.0597226]
[1744793866138,0.4205204,83731.0,83730.0,0.119441]
[1744793866638,0.0597204,83731.0,83730.0,0.168941]
[1744793867640,0.0647204,83731.0,83730.0,0.168941]
[1744793867845,0.1155204,83731.0,83730.0,0.168941]
[1744793868533,0.1657204,83731.0,83730.0,0.168941]
[1744793868743,0.1747204,83731.0,83730.0,0.168941]
[1744793869438,0.1747204,83731.0,83730.0,0.119441]
[1744793869640,0.1155204,83731.0,83730.0,0.119441]
[1744793869837,0.1235204,83731.0,83730.0,0.168141]
[1744793872132,0.1702204,83731.0,83730.0,0.168141]
[1744793872942,0.5310204,83731.0,83730.0,0.168141]
[1744793873835,0.5310204,83731.0,83730.0,0.120441]
[1744793874438,0.5310204,83731.0,83730.0,0.001]
[1744793874644,0.1194596,83717.0,83716.0,0.11957926]
[1744793874839,0.4802596,83717.0,83716.0,0.23904026]
[1744793875144,0.5278596,83717.0,83716.0,0.23904026]
[1744793875339,0.5278596,83717.0,83716.0,0.23912026]
[1744793875941,0.5318596,83717.0,83716.0,0.12065926]
[1744793876141,0.5784596,83717.0,83716.0,0.12065926]
[1744793876745,0.5784596,83717.0,83716.0,0.12057926]
[1744793876946,0.5804596,83717.0,83716.0,0.12065926]
[1744793880947,0.5338596,83717.0,83716.0,0.12065926]
[1744793881147,0.4862596,83717.0,83716.0,0.12065926]
[1744793881738,0.4862596,83717.0,83716.0,0.24012026]
[1744793882239,0.5846596,83717.0,83716.0,0.24012026]
[1744793882646,0.4862596,83717.0,83716.0,0.24012026]
[1744793882845,0.006,83717.0,83716.0,0.33502026]
[1744793883148,0.1254596,83717.0,83716.0,0.33502026]
[1744793886053,0.006,83717.0,83716.0,0.33502026]
[1744793886348,0.1254596,83717.0,83716.0,0.34502026]
[1744793887043,0.1254596,83717.0,83716.0,0.33502026]
[1744793888557,0.006,83717.0,83716.0,0.33502026]
[1744793888754,0.006,83717.0,83716.0,0.34502026]
[1744793889052,0.0597214,83729.0,83728.0,0.1791643]
[1744793889445,0.1194596,83717.0,83716.0,0.24011706]
[1744793889649,0.1194596,83717.0,83716.0,0.24003706]
[1744793889847,0.1672596,83717.0,83716.0,0.24003706]
[1744793890053,0.1672596,83717.0,83716.0,0.18030686]
[1744793890343,0.1194596,83717.0,83716.0,0.17938686]
[1744793890750,0.1672596,83717.0,83716.0,0.17930686]
[1744793890949,0.2142596,83717.0,83716.0,0.17938686]
[1744793891149,0.2192596,83717.0,83716.0,0.18038686]
[1744793892650,0.2172596,83717.0,83716.0,0.17938686]
[1744793892854,0.2172596,83717.0,83716.0,0.20938686]
[1744793893061,0.1224596,83717.0,83716.0,0.20938686]
[1744793893356,0.1214596,83717.0,83716.0,0.20938686]
[1744793894656,0.1725596,83717.0,83716.0,0.17938686]
[1744793895054,0.002,83717.0,83716.0,0.71018686]
[1744793895355,0.002,83717.0,83716.0,0.72018686]
[1744793895557,0.001,83717.0,83716.0,0.72018686]
[1744793895761,0.1194592,83718.0,83717.0,0.1194596]
[1744793895962,0.1194592,83718.0,83717.0,0.2394596]
[1744793897663,0.1194592,83718.0,83717.0,0.2404596]
[1744793899777,0.1194538,83722.0,83719.0,0.0597278]
[1744793900069,0.1194468,83726.0,83725.0,0.1791707]
[1744793900453,0.3608,83729.0,83727.0,0.0597226]
[1744793900761,0.11961596,83733.0,83732.0,0.1194382]
[1744793901057,0.1791118,83755.0,83732.0,0.3808]
[1744793901263,0.04938,83755.0,83754.0,0.1194068]
[1744793901462,8e-05,83755.0,83754.0,0.1494068]
[1744793901666,0.27345371,83756.0,83755.0,0.1194054]
[1744793901962,0.39285761,83756.0,83755.0,0.1194054]
[1744793902166,0.27345371,83756.0,83755.0,0.1677054]
[1744793902355,0.00010801,83758.0,83757.0,0.1194025]
[1744793902553,0.11950911,83758.0,83757.0,0.1877025]
[1744793902865,0.11950911,83758.0,83747.0,0.00017915]
[1744793902866,0.0597062,83751.0,83747.0,0.00017915]
[1744793903066,0.0597032,83755.0,83747.0,0.11959595]
[1744793903067,0.4802153,83748.0,83747.0,0.11959595]
[1744793903853,0.5783153,83748.0,83747.0,0.11959595]
[1744793904164,0.1696153,83748.0,83747.0,0.11959595]
[1744793904557,0.1194153,83748.0,83747.0,0.16919595]
[1744793904961,0.0493,83749.0,83748.0,0.1194153]
[1744793905153,0.1687139,83749.0,83748.0,0.2176153]
[1744793906261,0.1707139,83749.0,83748.0,0.1690153]
[1744793906653,0.1737139,83749.0,83748.0,0.1700153]
[1744793906854,0.1737139,83749.0,83748.0,0.1700953]
[1744793907057,0.0543,83749.0,83748.0,0.1700953]
[1744793907457,0.1737139,83749.0,83748.0,0.1700953]
[1744793910758,0.0543,83749.0,83748.0,0.1700953]
[1744793910954,0.005,83749.0,83748.0,0.1700953]
[1744793911160,0.005,83749.0,83748.0,0.2208953]
[1744793911566,0.005,83749.0,83748.0,0.2308953]
[1744793912368,0.00519684,83760.0,83754.0,0.1194068]
[1744793912670,0.00519684,83760.0,83759.0,0.1193997]
[1744793912671,0.005,83760.0,83759.0,0.1193997]
[1744793912862,0.00510801,83760.0,83759.0,0.1193997]
[1744793913061,0.00510801,83760.0,83759.0,0.2246997]
[1744793913458,0.00510801,83760.0,83759.0,0.2346997]
[1744793914464,0.00019684,83767.0,83759.0,0.2346997]
[1744793914465,0.00019684,83767.0,83766.0,0.1193897]
[1744793914667,0.04477,83769.0,83768.0,0.1193868]
[1744793914869,0.04630801,83775.0,83774.0,0.1193783]
[1744793915072,0.0462,83775.0,83774.0,0.1193783]
[1744793915578,0.04628,83775.0,83774.0,0.1193783]
[1744793915771,0.04628,83775.0,83774.0,0.1683783]
[1744793916069,8e-05,83775.0,83774.0,0.1683783]
[1744793916270,0.00308,83775.0,83774.0,0.2288783]
[1744793916478,0.00708,83775.0,83774.0,0.2288783]
[1744793916877,0.1264569,83775.0,83774.0,0.2288783]
[1744793918175,0.2218569,83775.0,83774.0,0.2288783]
[1744793918773,0.05488,83775.0,83774.0,0.2288783]
[1744793918970,0.07190464,83789.0,83782.0,0.1193669]
[1744793918971,0.1193606,83787.0,83782.0,0.1193669]
[1744793919172,0.00017915,83783.0,83782.0,0.1193669]
[1744793919373,0.11962465,83783.0,83782.0,0.2653669]
[1744793919972,0.21742465,83783.0,83782.0,0.1193669]
[1744793920368,0.21742465,83783.0,83782.0,0.1673669]
[1744793920674,0.22442465,83783.0,83782.0,0.1683669]
[1744793920869,0.22442465,83783.0,83782.0,0.001]
[1744793920870,0.47842465,83783.0,83782.0,0.001]
[1744793921065,0.47842465,83783.0,83769.0,0.1790774]
[1744793921066,0.1790795,83770.0,83769.0,0.1790774]
[1744793921663,0.2793795,83770.0,83769.0,0.1790774]
[1744793922065,0.2813795,83770.0,83769.0,0.1790774]
[1744793922265,0.0522,83770.0,83769.0,0.1790774]
[1744793922667,0.002,83770.0,83769.0,0.2890774]
[1744793922962,0.0512,83775.0,83774.0,0.1193783]
[1744793923166,0.0501,83782.0,83781.0,0.1193683]
[1744793923775,0.00725915,83783.0,83782.0,0.1193669]
[1744793923976,0.00025915,83783.0,83782.0,0.1657669]
[1744793924473,0.00025915,83783.0,83782.0,0.2547669]
[1744793924672,0.00017915,83783.0,83782.0,0.2547669]
[1744793924978,0.00014581,83793.0,83792.0,0.1193526]
[1744793925170,0.0495,83798.0,83794.0,0.0596745]
[1744793925472,0.0495,83798.0,83797.0,0.1193455]
[1744793925675,0.4103,83798.0,83790.0,0.059677]
[1744793925874,0.4103,83798.0,83797.0,0.1193455]
[1744793926080,0.41038,83798.0,83797.0,0.1193455]
[1744793926276,0.5296441,83798.0,83797.0,0.1193455]
[1744793926769,0.5297241,83798.0,83797.0,0.1193455]
[1744793927164,0.5337241,83798.0,83797.0,0.1193455]
[1744793928072,0.5367241,83798.0,83797.0,0.1193455]
[1744793930063,0.5844241,83798.0,83797.0,0.1193455]
[1744793930976,0.5844241,83798.0,83797.0,0.1685455]
[1744793933078,0.46508,83798.0,83797.0,0.1685455]
[1744793933679,0.465,83798.0,83797.0,0.1685455]
[1744793933872,0.46508,83798.0,83797.0,0.2181455]
[1744793935481,0.36788,83798.0,83797.0,0.2181455]
[1744793935776,0.36788,83798.0,83797.0,0.1685455]
[1744793935974,0.1790261,83795.0,83794.0,0.2386946]
[1744793937271,0.1840261,83795.0,83794.0,0.2386946]
[1744793944282,0.0646749,83795.0,83794.0,0.2386946]
[1744793944477,0.005,83795.0,83794.0,0.2386946]
[1744793944879,0.1244284,83795.0,83794.0,0.2386946]
[1744793945079,0.1243484,83795.0,83794.0,0.2386946]
[1744793945281,0.1244284,83795.0,83794.0,0.2386946]
[1744793946273,0.1244284,83795.0,83794.0,0.22973841]
[1744793948077,0.1193541,83791.0,83790.0,0.0506]
[1744793948277,0.1193598,83787.0,83786.0,0.00017904]
[1744793948676,0.2189598,83787.0,83786.0,0.00017904]
[1744793950181,0.2199598,83787.0,83786.0,0.00017904]
[1744793955991,0.1203598,83787.0,83786.0,0.00017904]
[1744793956893,0.1203598,83787.0,83786.0,0.11954024]
[1744793957393,0.2212598,83787.0,83786.0,0.11954024]
[1744793957982,0.2212598,83787.0,83786.0,0.21564024]
[1744793958485,0.1708598,83787.0,83786.0,0.21564024]
[1744793958986,0.2198598,83787.0,83786.0,0.21564024]
[1744793959189,0.2198598,83787.0,83786.0,0.11954024]
[1744793960588,0.2198598,83787.0,83786.0,0.00017904]
[1744793960785,0.1193683,83781.0,83780.0,0.1193695]
[1744793960990,0.1193712,83779.0,83778.0,0.0596861]
[1744793961192,0.1193712,83779.0,83774.0,0.0512]
[1744793961193,0.0596918,83771.0,83753.0,0.08624]
[1744793961394,0.1193769,83775.0,83774.0,0.000108]
[1744793961698,0.1193783,83774.0,83773.0,0.00887849]
[1744793961995,0.1193826,83771.0,83770.0,0.000108]
[1744793962183,0.4801826,83771.0,83770.0,0.000108]
[1744793962388,0.5310826,83771.0,83770.0,0.000108]
[1744793963791,0.5330826,83771.0,83770.0,0.000108]
[1744793964393,0.5350826,83771.0,83770.0,0.000108]
[1744793968295,0.4841826,83771.0,83770.0,0.000108]
[1744793968501,0.4841826,83771.0,83770.0,0.218792]
[1744793969199,0.4842626,83771.0,83770.0,0.218792]
[1744793969595,0.4832626,83771.0,83770.0,0.218792]
[1744793969788,0.4822626,83771.0,83770.0,0.218792]
[1744793970097,0.4822626,83771.0,83770.0,0.099408]
[1744793970289,0.5291626,83771.0,83770.0,0.150308]
[1744793971087,0.5291626,83771.0,83770.0,0.269692]
[1744793971290,0.4812626,83771.0,83770.0,0.269692]
[1744793971895,0.4812626,83771.0,83770.0,0.270692]
[1744793972604,0.4812626,83771.0,83770.0,0.269692]
[1744793972799,0.4802626,83771.0,83770.0,0.269692]
[1744793973594,0.5304626,83771.0,83770.0,0.269692]
[1744793973795,0.5304626,83771.0,83770.0,0.051008]
[1744793974198,0.5304626,83771.0,83770.0,0.0509]
[1744793974405,0.5304626,83771.0,83770.0,0.05098]
[1744793976304,0.5314626,83771.0,83770.0,0.05098]
[1744793976494,0.5304626,83771.0,83770.0,0.10148]
[1744793976699,0.5314626,83771.0,83770.0,0.10148]
[1744793978306,0.4822626,83771.0,83770.0,0.220864]
[1744793978895,0.4821826,83771.0,83770.0,0.220864]
[1744793979100,0.4821826,83771.0,83770.0,0.10148]
[1744793979101,0.4812626,83771.0,83770.0,0.10148]
[1744793979406,0.4822626,83771.0,83770.0,0.05098]
[1744793979704,0.4822626,83771.0,83770.0,0.0509]
[1744793979705,0.5832626,83771.0,83770.0,0.0509]
[1744793980007,0.5831826,83771.0,83770.0,0.0509]
[1744793980403,0.5844506,83771.0,83770.0,0.05167565]
[1744793981506,0.6301506,83771.0,83770.0,0.05167565]
[1744793981704,0.6311506,83771.0,83770.0,0.05167565]
[1744793982599,0.6301506,83771.0,83770.0,0.05167565]
[1744793982795,0.6321506,83771.0,83770.0,0.05167565]
[1744793983298,0.6341506,83771.0,83770.0,0.05167565]
[1744793983899,0.5831506,83771.0,83770.0,0.05167565]
[1744793984100,0.4854506,83771.0,83770.0,0.17105965]
[1744793984606,0.4855306,83771.0,83770.0,0.17105965]
[1744793984800,0.4855306,83771.0,83770.0,0.22145965]
[1744793985002,0.4851826,83771.0,83770.0,0.220684]
[1744793985401,0.1243826,83771.0,83770.0,0.22145965]
[1744793985603,0.4854506,83771.0,83770.0,0.22145965]
[1744793985803,0.1246506,83771.0,83770.0,0.22145965]
[1744793986002,0.4854506,83771.0,83770.0,0.22145965]
[1744793986303,0.4855306,83771.0,83770.0,0.22145965]
[1744793986502,0.4845306,83771.0,83770.0,0.22145965]
[1744793986703,0.4815306,83771.0,83770.0,0.22145965]
[1744793988011,0.001348,83771.0,83770.0,0.22145965]
[1744793988198,0.1206506,83771.0,83770.0,0.22145965]
[1744793988403,0.1207306,83771.0,83770.0,0.22145965]
[1744793988610,0.1197306,83771.0,83770.0,0.22145965]
[1744793989606,0.000348,83771.0,83770.0,0.22245965]
[1744793989999,0.00010801,83778.0,83770.0,0.22245965]
[1744793990000,0.1193742,83777.0,83773.0,0.0596898]
[1744793990206,0.1193742,83777.0,83776.0,0.1790616]
[1744793990406,0.1196422,83777.0,83776.0,0.1890616]
[1744793990606,0.1197222,83777.0,83776.0,0.1890616]
[1744793990806,0.000348,83777.0,83776.0,0.1890616]
[1744793991702,0.000268,83777.0,83776.0,0.1890616]
[1744793991905,0.00017904,83783.0,83782.0,0.1193669]
[1744793992106,0.00017904,83783.0,83782.0,0.2649669]
[1744793992308,0.00025904,83783.0,83782.0,0.3118669]
[1744793992806,0.11962454,83783.0,83782.0,0.3118669]
[1744793994608,0.11962454,83783.0,83782.0,0.3128669]
[1744793995008,0.11954454,83783.0,83782.0,0.3128669]
[1744793996712,0.21064454,83783.0,83782.0,0.3128669]
[1744793997108,0.21064454,83783.0,83782.0,0.2128669]
[1744793997326,0.11954454,83783.0,83782.0,0.2128669]
[1744793997613,0.11954454,83783.0,83782.0,0.2118669]
[1744793998113,0.12054454,83783.0,83782.0,0.2128669]
[1744793998816,0.11954454,83783.0,83782.0,0.2428669]
[1744793999112,0.11962454,83783.0,83782.0,0.2428669]
[1744793999909,0.00025904,83783.0,83782.0,0.2428669]
[1744794000208,0.11954454,83783.0,83782.0,0.2428669]
[1744794000513,0.11962454,83783.0,83782.0,0.2428669]
[1744794000713,0.00017904,83783.0,83782.0,0.2428669]
[1744794000916,0.00010801,83790.0,83789.0,0.1193569]
[1744794001104,0.10026573,83800.0,83793.0,0.0596751]
[1744794001309,0.10026573,83800.0,83799.0,0.4801427]
[1744794001509,0.10026573,83800.0,83799.0,0.2693427]
[1744794001816,0.10026573,83800.0,83799.0,0.3579427]
[1744794002211,0.10026573,83800.0,83799.0,0.3050427]
[1744794002212,0.2193412,83800.0,83799.0,0.3050427]
[1744794002415,0.2193412,83800.0,83799.0,0.1750427]
[1744794002605,0.3099412,83800.0,83799.0,0.1650427]
[1744794002809,0.3119412,83800.0,83799.0,0.1650427]
[1744794003019,0.3120212,83800.0,83799.0,0.1650427]
[1744794003220,0.2213412,83800.0,83799.0,0.1650427]
[1744794003409,0.2214212,83800.0,83799.0,0.2113427]
[1744794004415,0.2214212,83800.0,83799.0,0.2213427]
[1744794004617,0.005,83812.0,83807.0,0.1193313]
[1744794004921,0.11950884,83808.0,83807.0,0.2649313]
[1744794005105,0.11950884,83808.0,83807.0,0.1456]
[1744794005305,0.00017904,83808.0,83807.0,0.1749313]
[1744794005818,0.00017904,83808.0,83807.0,0.23021571]
[1744794006213,0.12350884,83808.0,83807.0,0.23021571]
[1744794006512,0.12950884,83808.0,83807.0,0.23121571]
[1744794006913,0.21900884,83808.0,83807.0,0.23121571]
[1744794007220,0.12950884,83808.0,83807.0,0.23121571]
[1744794010129,0.01017904,83808.0,83807.0,0.23121571]
[1744794010821,0.12950884,83808.0,83807.0,0.23121571]
[1744794011217,0.12958884,83808.0,83807.0,0.23121571]
[1744794012032,0.01025904,83808.0,83807.0,0.23121571]
[1744794012339,0.12958884,83808.0,83807.0,0.23121571]
[1744794013130,0.21808884,83808.0,83807.0,0.23121571]
[1744794016027,0.12958884,83808.0,83807.0,0.23121571]
[1744794016224,0.21908884,83808.0,83807.0,0.23121571]
[1744794019222,0.12958884,83808.0,83807.0,0.23121571]
[1744794019418,0.21598884,83808.0,83807.0,0.23121571]
[1744794019841,0.21598884,83808.0,83807.0,0.18491571]
[1744794020334,0.21598884,83808.0,83807.0,0.06558441]
[1744794020634,0.21598884,83808.0,83807.0,0.00998441]
[1744794021221,0.57678884,83808.0,83807.0,0.00998441]
[1744794021426,0.57678884,83808.0,83807.0,0.12931571]
[1744794023022,0.57678884,83808.0,83807.0,0.17031571]
[1744794025332,0.49038884,83808.0,83807.0,0.17031571]
[1744794025535,0.37105904,83808.0,83807.0,0.21131571]
[1744794025732,0.37097904,83808.0,83807.0,0.21131571]
[1744794026032,0.37105904,83808.0,83807.0,0.22131571]
[1744794026332,0.37097904,83808.0,83807.0,0.22131571]
[1744794026629,0.37105904,83808.0,83807.0,0.22131571]
[1744794027031,0.01025904,83808.0,83807.0,0.22131571]
[1744794027232,0.005,83812.0,83811.0,0.1193256]
[1744794027424,0.005,83812.0,83811.0,0.2615256]
[1744794028432,0.00017904,83820.0,83817.0,0.0596585]
[1744794028628,0.043,83833.0,83826.0,0.0596514]
[1744794028834,0.3612816,83835.0,83834.0,0.1192928]
[1744794029332,0.3613616,83835.0,83834.0,0.2405928]
[1744794029533,0.2420697,83835.0,83834.0,0.2405928]
[1744794029733,0.3612811,83835.0,83834.0,0.2405928]
[1744794029934,0.3613611,83835.0,83834.0,0.2316412]
[1744794030134,0.1192914,83835.0,83834.0,0.2316412]
[1744794030538,0.1193714,83835.0,83834.0,0.2316412]
[1744794030946,0.1599714,83835.0,83834.0,0.2316412]
[1744794031444,0.2036714,83835.0,83834.0,0.2316412]
[1744794031942,0.2066714,83835.0,83834.0,0.2316412]
[1744794034148,0.1233714,83835.0,83834.0,0.2316412]
[1744794035444,0.1661714,83835.0,83834.0,0.2316412]
[1744794037041,0.1233714,83835.0,83834.0,0.2316412]
[1744794037443,0.1233714,83835.0,83834.0,0.2416412]
[1744794037746,0.1232914,83835.0,83834.0,0.2416412]
[1744794038048,0.00408,83835.0,83834.0,0.2416412]
[1744794038635,0.004,83835.0,83834.0,0.2416412]
[1744794038850,0.00408,83835.0,83834.0,0.2416412]
[1744794040249,0.004,83835.0,83834.0,0.2416412]
[1744794040548,0.00408,83835.0,83834.0,0.2416412]
[1744794041748,0.00108,83835.0,83834.0,0.2416412]
[1744794041952,0.00208,83835.0,83834.0,0.2416412]
[1744794042643,0.02361144,83847.0,83846.0,0.1192758]
[1744794042838,0.02361144,83847.0,83846.0,0.5959958]
[1744794043039,0.02371945,83847.0,83846.0,0.6059958]
[1744794043541,0.02371945,83847.0,83846.0,0.6861958]
[1744794043746,0.02361144,83847.0,83846.0,0.6861958]
[1744794043946,0.02369144,83847.0,83846.0,0.6861958]
[1744794044646,0.02669144,83847.0,83846.0,0.6861958]
[1744794044834,0.02669144,83847.0,83846.0,0.6012758]
[1744794045034,0.14596574,83847.0,83846.0,0.1202758]
[1744794045349,0.14296574,83847.0,83846.0,0.1202758]
[1744794045545,0.18336574,83847.0,83846.0,0.1202758]
[1744794045733,0.22286574,83847.0,83846.0,0.1202758]
[1744794046842,0.22286574,83847.0,83846.0,0.1583758]
[1744794047236,0.22286574,83847.0,83846.0,0.001]
[1744794047437,0.1992543,83847.0,83846.0,0.001]
[1744794047641,0.1193,83829.0,83828.0,0.1574014]
[1744794047835,0.1193,83829.0,83828.0,0.01]
[1744794048035,0.1193028,83827.0,83826.0,0.00017892]
[1744794048442,0.1973028,83827.0,83826.0,0.00017892]
[1744794049043,0.20944421,83827.0,83826.0,0.00017892]
[1744794049745,0.21144421,83827.0,83826.0,0.00017892]
[1744794050753,0.21244421,83827.0,83826.0,0.00017892]
[1744794051743,0.21044421,83827.0,83826.0,0.00017892]
[1744794052054,0.0596562,83821.0,83807.0,0.12831451]
[1744794052257,0.119327,83810.0,83809.0,0.12445898]
[1744794052549,0.119327,83810.0,83809.0,0.00513068]
[1744794052755,0.480127,83810.0,83809.0,0.00513068]
[1744794053142,0.553927,83810.0,83809.0,0.00513068]
[1744794053950,0.1193384,83802.0,83801.0,0.00017892]
[1744794054252,0.4801384,83802.0,83801.0,0.00017892]
[1744794054847,0.5539384,83802.0,83801.0,0.00017892]
[1744794055955,0.5559384,83802.0,83801.0,0.00017892]
[1744794056647,0.5549384,83802.0,83801.0,0.00017892]
[1744794056946,0.5559384,83802.0,83801.0,0.00017892]
[1744794058948,0.5559384,83802.0,83787.0,0.1194394]
[1744794058949,0.1193583,83788.0,83787.0,0.1194394]
[1744794059143,0.1193583,83788.0,83787.0,0.1551394]
[1744794059343,0.1193583,83788.0,83787.0,0.1550594]
[1744794059547,0.1193583,83788.0,83787.0,0.1551394]
[1744794059851,0.1931583,83788.0,83787.0,0.16399429]
[1744794060250,0.1564583,83788.0,83787.0,0.16699429]
[1744794060547,0.1564583,83788.0,83787.0,0.16799429]
[1744794061238,0.1564583,83788.0,83787.0,0.16699429]
[1744794061837,0.1564583,83788.0,83787.0,0.16399429]
[1744794062151,0.1564583,83788.0,83787.0,0.16699429]
[1744794063049,0.1193583,83788.0,83787.0,0.16699429]
[1744794063258,0.0596685,83803.0,83795.0,0.1193484]
[1744794063455,0.11952582,83796.0,83795.0,0.1193484]
[1744794063653,0.11960582,83796.0,83795.0,0.2332484]
[1744794063851,0.00025892,83796.0,83795.0,0.2332484]
[1744794064152,0.00017892,83796.0,83795.0,0.2432484]
[1744794064454,0.00025892,83796.0,83795.0,0.2432484]
[1744794065450,0.00025892,83796.0,83795.0,0.2472484]
[1744794066551,0.00025892,83796.0,83795.0,0.2512484]
[1744794067444,0.00025892,83796.0,83795.0,0.2602484]
[1744794068254,0.00025892,83796.0,83795.0,0.2612484]
[1744794068846,0.00025892,83796.0,83795.0,0.2562484]
[1744794069148,0.00025892,83796.0,83795.0,0.2612484]
[1744794069844,0.00025892,83796.0,83795.0,0.2582484]
[1744794070049,0.00017892,83796.0,83795.0,0.2612484]
[1744794070655,0.11952582,83796.0,83795.0,0.2482484]
[1744794070857,0.00017892,83796.0,83795.0,0.2512484]
[1744794071051,0.11952582,83796.0,83795.0,0.2512484]
[1744794072146,0.11952582,83796.0,83795.0,0.2502484]
[1744794072348,0.11952582,83796.0,83795.0,0.1639484]
[1744794072752,0.19772582,83796.0,83795.0,0.1599484]
[1744794072951,0.19772582,83796.0,83795.0,0.1629484]
[1744794073150,0.15882582,83796.0,83795.0,0.2019484]
[1744794073756,0.15882582,83796.0,83795.0,0.2009484]
[1744794074561,0.15882582,83796.0,83795.0,0.2019484]
[1744794075461,0.19522582,83796.0,83795.0,0.1629484]
[1744794075660,0.19522582,83796.0,83795.0,0.1609484]
[1744794075863,0.19522582,83796.0,83795.0,0.0416]
[1744794076062,0.55602582,83796.0,83795.0,0.1609484]
[1744794076953,0.11952582,83796.0,83795.0,0.1599484]
[1744794077160,0.00017892,83796.0,83795.0,0.1989484]
[1744794077366,0.11952582,83796.0,83795.0,0.1989484]
[1744794077563,0.11960582,83796.0,83795.0,0.1989484]
[1744794077757,0.11960582,83796.0,83795.0,0.1979484]
[1744794077960,0.00025892,83796.0,83795.0,0.3679484]
[1744794078264,0.00017892,83796.0,83795.0,0.3679484]
[1744794078563,0.00025892,83796.0,83795.0,0.3649484]
[1744794078765,0.00025892,83796.0,83795.0,0.3659484]
[1744794079169,0.11960582,83796.0,83795.0,0.3649484]
[1744794079463,0.00025892,83796.0,83795.0,0.3689484]
[1744794079859,0.00025892,83796.0,83795.0,0.3659484]
[1744794080164,0.00017892,83796.0,83795.0,0.3709484]
[1744794081463,0.00017892,83796.0,83795.0,0.2009484]
[1744794081658,0.11952582,83796.0,83795.0,0.2009484]